bitfinex-derivatives/quotes_BTCF0:USTF0_20240910
["timestamp","ask_amount","ask_price","bid_price","bid_amount"]
[1725963684390,0.017,57052.0,57051.0,0.250036]
[1725963684996,0.017,57052.0,57051.0,0.337672]
[1725963685399,0.017,57052.0,57051.0,1.48945316]
[1725963685797,0.017,57052.0,57051.0,1.70860468]
[1725963686099,0.087619,57062.0,57061.0,0.08762]
[1725963686489,0.087619,57062.0,57058.0,0.13995738]
[1725963686693,0.0485,57063.0,57058.0,0.13995738]
[1725963686893,0.087624,57059.0,57058.0,0.13995738]
[1725963687403,0.087624,57059.0,57058.0,0.087625]
[1725963688499,0.094624,57059.0,57058.0,0.088625]
[1725963689807,0.094624,57059.0,57058.0,0.089625]
[1725963694103,0.007,57059.0,57058.0,0.089625]
[1725963695207,0.24258095,57059.0,57058.0,0.089625]
[1725963695403,0.29637069,57059.0,57058.0,0.089625]
[1725963697402,0.10370371,57059.0,57058.0,0.089625]
[1725963698909,0.10370371,57059.0,57058.0,0.11542117]
[1725963700108,0.10370367,57059.0,57058.0,0.21542117]
[1725963700714,0.10370367,57059.0,57058.0,0.30304617]
[1725963700911,0.10370367,57059.0,57058.0,0.21542117]
[1725963702026,0.007,57059.0,57058.0,0.21542117]
[1725963702218,0.008,57059.0,57058.0,0.21542117]
[1725963702815,0.001,57059.0,57058.0,0.21542117]
[1725963703509,0.001,57059.0,57058.0,0.30304617]
[1725963703910,0.001,57059.0,57058.0,0.21542117]
[1725963704610,0.001,57059.0,57058.0,0.28541622]
[1725963704817,0.001,57059.0,57058.0,0.21542117]
[1725963705808,0.001,57059.0,57058.0,0.28541622]
[1725963709012,0.001,57059.0,57058.0,0.21542117]
[1725963709312,0.001,57059.0,57058.0,0.28544049]
[1725963709614,0.001,57059.0,57058.0,0.21542117]
[1725963709915,0.09770145,57059.0,57058.0,0.21542117]
[1725963710212,0.09770106,57059.0,57058.0,0.21542117]
[1725963711211,0.25511773,57059.0,57058.0,0.21542117]
[1725963711814,0.09770106,57059.0,57058.0,0.30304617]
[1725963712918,0.04391279,57059.0,57058.0,0.30304617]
[1725963713716,0.04391279,57059.0,57058.0,0.21542117]
[1725963714214,0.04391279,57059.0,57058.0,0.30304617]
[1725963716218,0.09769804,57059.0,57058.0,0.30304617]
[1725963717126,0.19239815,57062.0,57061.0,0.087621]
[1725963717422,0.19239815,57062.0,57061.0,0.47834177]
[1725963719023,0.19339815,57062.0,57061.0,0.47934177]
[1725963720818,0.19339815,57062.0,57061.0,0.47962326]
[1725963722327,0.19339815,57062.0,57061.0,0.56724426]
[1725963722927,0.19339815,57062.0,57061.0,0.9607247]
[1725963723117,0.09232667,57062.0,57061.0,0.83813598]
[1725963723614,0.09232667,57062.0,57061.0,0.97825965]
[1725963723814,0.09232667,57062.0,57061.0,0.83813598]
[1725963724032,0.0041,57069.0,57068.0,0.17522]
[1725963724321,0.0041,57076.0,57075.0,0.087599]
[1725963724547,0.0471,57081.0,57075.0,0.23297634]
[1725963724730,0.0471,57081.0,57080.0,0.1004]
[1725963724917,0.0471,57081.0,57080.0,0.23257634]
[1725963725117,0.04289595,57081.0,57080.0,0.187591]
[1725963725924,0.23515306,57081.0,57080.0,0.187591]
[1725963726114,0.23515306,57081.0,57080.0,0.188591]
[1725963726424,0.09666311,57081.0,57080.0,0.188591]
[1725963726825,0.09666311,57081.0,57080.0,0.189591]
[1725963727129,0.09666311,57081.0,57080.0,0.21553641]
[1725963730127,0.19192579,57081.0,57080.0,0.21553641]
[1725963730425,0.10276716,57087.0,57082.0,0.087588]
[1725963730426,0.19192579,57083.0,57082.0,0.087588]
[1725963730627,0.19192579,57084.0,57083.0,0.087587]
[1725963730925,0.19192579,57084.0,57083.0,0.187987]
[1725963730926,0.09665568,57084.0,57083.0,0.187987]
[1725963731315,0.049,57087.0,57086.0,0.087582]
[1725963731521,0.09189266,57087.0,57086.0,0.187982]
[1725963731721,0.14565569,57087.0,57086.0,0.187982]
[1725963732021,0.049,57087.0,57086.0,0.187982]
[1725963732421,0.049,57087.0,57086.0,0.188982]
[1725963733930,0.049,57087.0,57086.0,0.189982]
[1725963734328,0.049,57087.0,57086.0,0.089982]
[1725963735828,0.049,57087.0,57086.0,0.189982]
[1725963736422,0.0041,57094.0,57092.0,0.087573]
[1725963736623,0.087569,57095.0,57092.0,0.187573]
[1725963736824,0.07559434,57097.0,57092.0,0.187973]
[1725963737035,0.16315934,57097.0,57092.0,0.187973]
[1725963737735,0.16315934,57097.0,57092.0,0.188973]
[1725963738137,0.16315934,57097.0,57092.0,0.189973]
[1725963738332,0.087567,57096.0,57092.0,0.189973]
[1725963738835,0.07559434,57097.0,57092.0,0.0024]
[1725963738836,0.134472,57093.0,57092.0,0.0024]
[1725963739227,0.0469,57093.0,57092.0,0.0014]
[1725963739547,0.0469,57093.0,57092.0,0.0024]
[1725963739947,0.134472,57093.0,57092.0,0.0024]
[1725963740241,0.134472,57093.0,57092.0,0.089973]
[1725963740833,0.134472,57093.0,57092.0,0.11617724]
[1725963741239,0.0469,57093.0,57092.0,0.11617724]
[1725963741440,0.0469,57093.0,57092.0,0.27617724]
[1725963741636,0.0496,57097.0,57096.0,0.087567]
[1725963742035,0.0496,57097.0,57096.0,0.087967]
[1725963742737,0.0496,57097.0,57096.0,0.247967]
[1725963742932,0.0496,57097.0,57096.0,0.249967]
[1725963747136,0.0496,57097.0,57096.0,0.248967]
[1725963747529,0.0496,57097.0,57096.0,0.247967]
[1725963748442,0.0485,57100.0,57099.0,0.087562]
[1725963748743,0.0485,57100.0,57099.0,0.087962]
[1725963748744,0.136061,57100.0,57099.0,0.087962]
[1725963748948,0.17894393,57100.0,57099.0,0.0004]
[1725963749243,0.087572,57093.0,57092.0,0.03030424]
[1725963749444,0.087572,57093.0,57092.0,0.02620424]
[1725963749738,0.087572,57093.0,57092.0,0.087573]
[1725963750144,0.13917125,57096.0,57095.0,0.087568]
[1725963750441,0.087563,57099.0,57095.0,0.0004]
[1725963750639,0.04288442,57098.0,57096.0,0.16]
[1725963750836,0.087564,57098.0,57097.0,0.087565]
[1725963751236,0.13044755,57098.0,57097.0,0.087565]
[1725963751436,0.087564,57098.0,57097.0,0.087565]
[1725963751643,0.1304475,57098.0,57097.0,0.087565]
[1725963752029,0.1304475,57098.0,57097.0,0.088565]
[1725963752234,0.26961875,57098.0,57097.0,0.088565]
[1725963752444,0.1304475,57098.0,57097.0,0.088565]
[1725963752845,0.0428835,57098.0,57097.0,0.248565]
[1725963753043,0.0485,57100.0,57099.0,0.087562]
[1725963753248,0.0485,57100.0,57099.0,0.087962]
[1725963753547,0.18788344,57100.0,57099.0,0.087962]
[1725963753742,0.23076713,57100.0,57099.0,0.087962]
[1725963754140,0.23076713,57100.0,57099.0,0.088962]
[1725963754937,0.23076713,57100.0,57099.0,0.089962]
[1725963755244,0.0485,57100.0,57099.0,0.089962]
[1725963756252,0.136061,57100.0,57099.0,0.089962]
[1725963760057,0.12192518,57124.0,57115.0,0.88019947]
[1725963760242,0.27185282,57152.0,57142.0,0.087495]
[1725963760555,0.27185282,57152.0,57123.0,0.0004]
[1725963760556,0.1409,57152.0,57146.0,0.08749]
[1725963761050,0.1409,57152.0,57145.0,0.16]
[1725963761250,0.52496,57151.0,57139.0,0.06986412]
[1725963761555,0.087486,57149.0,57136.0,0.16]
[1725963761750,0.1409,57152.0,57136.0,0.16]
[1725963761955,0.1409,57152.0,57151.0,0.0004]
[1725963762148,0.30023543,57152.0,57146.0,0.001]
[1725963762350,0.68429543,57151.0,57146.0,0.001]
[1725963762651,0.15933543,57150.0,57146.0,0.001]
[1725963762852,0.09656966,57149.0,57141.0,0.087497]
[1725963763153,0.22576941,57146.0,57141.0,0.087497]
[1725963763348,0.15933544,57145.0,57141.0,0.087497]
[1725963763544,0.15933544,57144.0,57141.0,0.087497]
[1725963763744,0.09656967,57143.0,57141.0,0.087497]
[1725963763957,0.09656967,57142.0,57141.0,0.087497]
[1725963765254,0.09656967,57142.0,57141.0,0.088497]
[1725963765750,0.09656967,57142.0,57141.0,0.089497]
[1725963766059,0.09656967,57142.0,57141.0,0.088497]
[1725963766359,0.09656967,57142.0,57141.0,0.089497]
[1725963766752,0.04285448,57142.0,57141.0,0.089497]
[1725963767558,0.21604548,57142.0,57141.0,0.089497]
[1725963767758,0.26976067,57142.0,57141.0,0.089497]
[1725963768149,0.26975661,57142.0,57141.0,0.089497]
[1725963768352,0.09656561,57142.0,57141.0,0.089497]
[1725963770160,0.087483,57151.0,57141.0,0.002]
[1725963770350,0.087483,57151.0,57150.0,0.0004]
[1725963770551,1.212403,57151.0,57150.0,0.0004]
[1725963772060,1.212403,57151.0,57150.0,0.0014]
[1725963772660,1.212403,57151.0,57150.0,0.0024]
[1725963773762,1.212403,57151.0,57150.0,0.089884]
[1725963774154,0.612403,57151.0,57150.0,0.089884]
[1725963774463,1.212403,57151.0,57150.0,0.089884]
[1725963774657,1.212403,57151.0,57150.0,0.0024]
[1725963776160,0.087486,57149.0,57148.0,0.087487]
[1725963776461,0.487486,57149.0,57148.0,0.087487]
[1725963776658,1.012446,57149.0,57148.0,0.087487]
[1725963777056,0.487486,57149.0,57148.0,0.087487]
[1725963777756,0.487486,57149.0,57148.0,0.088487]
[1725963777955,0.487486,57149.0,57148.0,0.089487]
[1725963778659,0.60863497,57149.0,57148.0,0.089487]
[1725963779756,1.13359497,57149.0,57148.0,0.089487]
[1725963779953,0.60863497,57149.0,57148.0,0.089487]
[1725963780357,0.25148592,57149.0,57148.0,0.089487]
[1725963780557,0.13033695,57149.0,57148.0,0.089487]
[1725963780958,0.65529695,57149.0,57148.0,0.089487]
[1725963781157,1.25529695,57149.0,57148.0,0.089487]
[1725963781458,0.65529695,57149.0,57148.0,0.089487]
[1725963781961,1.34278295,57149.0,57148.0,0.002]
[1725963782158,1.387418,57149.0,57148.0,0.002]
[1725963782466,1.25529974,57149.0,57148.0,0.002]
[1725963783463,1.39649995,57149.0,57148.0,0.002]
[1725963783657,1.55226291,57149.0,57148.0,0.002]
[1725963783860,1.55226291,57149.0,57148.0,0.001]
[1725963784066,1.39649995,57149.0,57148.0,0.002]
[1725963785162,1.299932,57149.0,57148.0,0.001]
[1725963785365,1.299932,57149.0,57148.0,0.002]
[1725963787071,0.087495,57143.0,57142.0,0.087496]
[1725963790274,0.087503,57139.0,57138.0,0.087501]
[1725963791572,0.087503,57139.0,57138.0,0.088501]
[1725963792166,0.19312632,57139.0,57138.0,0.088501]
[1725963792369,0.24684306,57139.0,57138.0,0.088501]
[1725963792868,0.33434606,57139.0,57138.0,0.001]
[1725963793074,0.18407547,57139.0,57138.0,0.001]
[1725963793469,0.80711347,57139.0,57138.0,0.001]
[1725963793674,0.087518,57128.0,57124.0,0.0041]
[1725963793876,0.087518,57128.0,57118.0,0.0457]
[1725963793877,0.087523,57125.0,57118.0,0.0457]
[1725963794174,0.087532,57119.0,57118.0,0.0457]
[1725963794370,0.18410447,57119.0,57118.0,0.0457]
[1725963794775,0.41079749,57119.0,57118.0,0.0457]
[1725963794976,0.47356508,57119.0,57118.0,0.0457]
[1725963795177,0.087535,57117.0,57116.0,0.02500912]
[1725963795377,0.24687506,57117.0,57111.0,0.0457]
[1725963795577,0.09657247,57116.0,57113.0,0.087541]
[1725963795776,0.09657247,57115.0,57113.0,0.087541]
[1725963795974,0.09657247,57114.0,57113.0,0.087541]
[1725963796667,0.18411147,57114.0,57111.0,0.133244]
[1725963796977,0.09657247,57113.0,57111.0,0.133244]
[1725963797173,0.09657247,57112.0,57111.0,0.133244]
[1725963797973,0.09657247,57112.0,57111.0,0.147244]
[1725963798478,0.09247247,57112.0,57111.0,1.272524]
[1725963798976,0.09247247,57112.0,57111.0,1.286524]
[1725963800278,0.04372003,57130.0,57117.0,0.087533]
[1725963800482,0.087527,57122.0,57118.0,0.53159995]
[1725963800675,0.087527,57122.0,57120.0,0.10463122]
[1725963800870,0.087527,57122.0,57121.0,0.12959485]
[1725963801971,0.08752,57127.0,57121.0,0.12888416]
[1725963802178,0.08752,57127.0,57126.0,0.07014415]
[1725963802379,0.17504,57127.0,57126.0,0.0004]
[1725963804184,1.38772,57127.0,57126.0,0.0064]
[1725963804485,1.38772,57127.0,57126.0,0.0124]
[1725963808185,1.43322,57127.0,57126.0,0.0124]
[1725963809179,0.83322,57127.0,57126.0,0.0124]
[1725963809687,0.30806,57127.0,57126.0,0.0124]
[1725963809887,0.88172,57127.0,57126.0,0.0124]
[1725963810482,0.35656,57127.0,57126.0,0.0124]
[1725963810689,0.17504,57127.0,57126.0,0.0124]
[1725963810889,0.08752,57127.0,57126.0,0.0124]
[1725963811477,0.087516,57130.0,57126.0,0.0124]
[1725963811478,0.087516,57130.0,57129.0,0.087516]
[1725963811686,0.087519,57127.0,57126.0,0.0124]
[1725963811886,0.087519,57127.0,57126.0,0.012]
[1725963812582,0.087519,57127.0,57126.0,0.093521]
[1725963813183,0.087519,57127.0,57126.0,0.099521]
[1725963813984,0.087519,57127.0,57126.0,0.093521]
[1725963814385,0.16,57132.0,57126.0,0.006]
[1725963814688,0.087517,57130.0,57129.0,0.087515]
[1725963815085,0.02934994,57136.0,57127.0,0.16]
[1725963815290,0.12180212,57130.0,57127.0,0.16]
[1725963815598,0.04286154,57129.0,57128.0,0.087518]
[1725963815784,0.13922412,57130.0,57129.0,0.087516]
[1725963815986,0.04285959,57130.0,57129.0,0.132516]
[1725963816192,0.04285959,57130.0,57129.0,0.132916]
[1725963816597,0.04285959,57130.0,57129.0,1.258036]
[1725963817686,0.04285933,57130.0,57129.0,1.17052]
[1725963818101,0.04285933,57130.0,57129.0,0.134916]
[1725963818491,0.04285933,57130.0,57129.0,0.137916]
[1725963819894,0.04285933,57130.0,57129.0,0.16416242]
[1725963821094,0.18212628,57130.0,57129.0,0.16416242]
[1725963821399,0.13926695,57130.0,57129.0,0.16416242]
[1725963821710,0.13926695,57131.0,57130.0,0.087515]
[1725963821894,0.13926695,57131.0,57130.0,0.087915]
[1725963822207,0.04285658,57135.0,57134.0,0.087509]
[1725963822409,0.04285658,57135.0,57134.0,0.14026263]
[1725963822703,0.04285658,57135.0,57134.0,0.1402645]
[1725963822905,0.13036358,57135.0,57134.0,0.1402645]
[1725963824503,0.13036358,57135.0,57134.0,0.087909]
[1725963825603,0.13036358,57135.0,57134.0,0.14025115]
[1725963827013,0.13036358,57135.0,57134.0,0.087909]
[1725963827505,0.087507,57135.0,57134.0,0.087909]
[1725963829201,0.0036,57136.0,57135.0,0.087507]
[1725963829406,0.091106,57136.0,57135.0,0.14024866]
[1725963829610,0.0036,57136.0,57135.0,0.087907]
[1725963831525,0.0077,57142.0,57141.0,0.087498]
[1725963831726,0.0036,57142.0,57141.0,0.087898]
[1725963833121,0.091096,57142.0,57141.0,0.088898]
[1725963834017,0.091096,57142.0,57141.0,0.089898]
[1725963835231,0.091096,57142.0,57141.0,0.11578913]
[1725963837219,0.091096,57142.0,57141.0,0.02829113]
[1725963837618,0.18766062,57142.0,57141.0,0.02829113]
[1725963838037,0.36166366,57142.0,57141.0,0.02829113]
[1725963838724,0.36166366,57142.0,57141.0,0.11578913]
[1725963838923,0.18766062,57142.0,57141.0,0.11578913]
[1725963840825,0.18766043,57142.0,57141.0,0.0024]
[1725963841019,0.23596043,57142.0,57141.0,0.0024]
[1725963841224,0.2359607,57142.0,57141.0,0.0024]
[1725963841731,0.3234567,57142.0,57141.0,0.0024]
[1725963843631,0.2359607,57142.0,57141.0,0.0024]
[1725963844729,0.2359607,57142.0,57141.0,0.089898]
[1725963844928,0.3234567,57142.0,57141.0,0.0024]
[1725963845335,0.226892,57142.0,57141.0,0.13193086]
[1725963845527,0.18311213,57142.0,57141.0,0.13193086]
[1725963845732,0.95560813,57142.0,57141.0,0.08982366]
[1725963845937,0.95560813,57142.0,57141.0,0.0024]
[1725963846838,0.43060813,57142.0,57141.0,0.0024]
[1725963848536,0.18311213,57142.0,57141.0,0.0024]
[1725963848837,0.18311213,57142.0,57141.0,0.13178215]
[1725963849036,0.18311213,57142.0,57141.0,0.21921699]
[1725963849333,0.18311213,57142.0,57141.0,0.08983571]
[1725963849542,0.18311213,57142.0,57141.0,0.1317231]
[1725963849838,0.18311213,57142.0,57141.0,0.2191801]
[1725963850225,0.18311213,57142.0,57141.0,0.21917242]
[1725963850431,0.18311213,57142.0,57141.0,0.13172997]
[1725963851842,0.18311213,57142.0,57141.0,0.2191823]
[1725963852336,0.27968242,57142.0,57141.0,0.0024]
[1725963854036,0.087509,57135.0,57133.0,0.0041]
[1725963854236,0.087509,57135.0,57134.0,0.087509]
[1725963854434,0.1303643,57135.0,57134.0,0.087509]
[1725963855235,0.087509,57135.0,57134.0,0.087509]
[1725963855744,0.26208562,57135.0,57134.0,0.087509]
[1725963856340,0.35865733,57135.0,57134.0,0.087509]
[1725963856941,0.18408071,57135.0,57134.0,0.087509]
[1725963857646,0.18608071,57135.0,57134.0,0.087509]
[1725963858431,0.18608071,57135.0,57134.0,0.11335609]
[1725963859844,0.36065733,57135.0,57134.0,0.11335609]
[1725963860348,0.089509,57135.0,57134.0,0.3968915]
[1725963860744,0.177018,57135.0,57134.0,0.28353541]
[1725963860941,0.177018,57135.0,57134.0,0.12937169]
[1725963861243,0.177018,57135.0,57134.0,0.23435571]
[1725963861431,0.089509,57135.0,57134.0,0.12937169]
[1725963861634,0.089509,57135.0,57134.0,0.23434609]
[1725963861843,0.089509,57135.0,57134.0,0.12937169]
[1725963862245,0.089509,57135.0,57134.0,0.21688069]
[1725963863543,0.089509,57135.0,57134.0,0.32184737]
[1725963864043,0.089509,57135.0,57134.0,0.21688069]
[1725963864339,0.089509,57135.0,57134.0,0.32184975]
[1725963867045,0.277018,57135.0,57134.0,0.23434075]
[1725963867345,0.087509,57134.0,57133.0,0.087509]
[1725963867534,0.27005479,57134.0,57133.0,0.087509]
[1725963868251,0.18408721,57134.0,57133.0,0.087509]
[1725963868637,0.34123601,57134.0,57133.0,0.087509]
[1725963869950,0.34223601,57134.0,57133.0,0.087509]
[1725963870249,0.18508721,57134.0,57133.0,0.087509]
[1725963870448,0.13136697,57134.0,57133.0,0.087509]
[1725963870643,0.22813743,57134.0,57133.0,0.087509]
[1725963870950,0.13136697,57134.0,57133.0,0.087509]
[1725963871549,0.04385797,57134.0,57133.0,0.087509]
[1725963871748,0.13136697,57134.0,57133.0,0.087509]
[1725963872045,0.2281384,57134.0,57133.0,0.087509]
[1725963872248,0.27099637,57134.0,57133.0,0.087509]
[1725963874042,0.18348737,57134.0,57133.0,0.087509]
[1725963874353,0.04385797,57134.0,57133.0,0.087509]
[1725963875448,0.001,57134.0,57133.0,0.3713487]
[1725963876751,0.001,57134.0,57133.0,0.21700018]
[1725963880454,0.001,57134.0,57133.0,0.21699681]
[1725963882450,0.001,57134.0,57133.0,0.15751007]
[1725963883358,0.001,57134.0,57133.0,0.087509]
[1725963885348,0.188509,57134.0,57133.0,0.087509]
[1725963885555,0.001,57134.0,57133.0,0.15752053]
[1725963885755,0.001,57134.0,57133.0,0.087509]
[1725963885947,0.001,57134.0,57133.0,0.275019]
[1725963889561,0.09757178,57134.0,57133.0,0.275019]
[1725963890260,0.25472058,57134.0,57133.0,0.275019]
[1725963890562,0.04385542,57134.0,57133.0,0.275019]
[1725963890864,0.09757178,57134.0,57133.0,0.275019]
[1725963891058,0.25472058,57134.0,57133.0,0.275019]
[1725963891663,0.04385542,57134.0,57133.0,0.275019]
[1725963893357,0.14068062,57134.0,57133.0,0.275019]
[1725963893557,0.04385542,57134.0,57133.0,0.275019]
[1725963895459,0.14066507,57134.0,57133.0,0.275019]
[1725963895857,0.18351716,57134.0,57133.0,0.275019]
[1725963897658,0.087497,57142.0,57133.0,0.47193414]
[1725963897869,0.087497,57142.0,57141.0,0.0004]
[1725963898069,0.087497,57142.0,57141.0,0.13015986]
[1725963898879,0.087497,57142.0,57141.0,0.21765786]
[1725963899169,0.087497,57142.0,57141.0,0.21865786]
[1725963899170,0.088497,57142.0,57141.0,0.21865786]
[1725963900570,0.088497,57142.0,57141.0,0.21965786]
[1725963901263,0.088497,57142.0,57141.0,0.089898]
[1725963902859,0.088497,57142.0,57141.0,0.0024]
[1725963903073,0.175995,57142.0,57141.0,0.0024]
[1725963903665,0.175995,57142.0,57141.0,0.13222671]
[1725963905372,0.175995,57142.0,57141.0,0.0024]
[1725963906269,0.263493,57142.0,57141.0,0.0024]
[1725963906473,0.788493,57142.0,57141.0,0.0024]
[1725963906873,0.263493,57142.0,57141.0,0.0024]
[1725963908667,0.3600697,57142.0,57141.0,0.0024]
[1725963910282,0.263493,57142.0,57141.0,0.0024]
[1725963914787,0.175995,57142.0,57141.0,0.0024]
[1725963920074,0.001,57142.0,57141.0,0.0024]
[1725963920281,0.001,57142.0,57141.0,0.32026561]
[1725963920486,0.001,57142.0,57141.0,0.189898]
[1725963920783,0.04385135,57142.0,57141.0,0.189898]
[1725963920982,0.001,57142.0,57141.0,0.189898]
[1725963921179,0.04385135,57142.0,57141.0,0.189898]
[1725963921377,0.05471126,57142.0,57141.0,0.189898]
[1725963921687,0.001,57142.0,57141.0,0.189898]
[1725963921884,0.09756261,57142.0,57141.0,0.189898]
[1725963924285,0.09756261,57142.0,57141.0,0.21572214]
[1725963924590,0.15805864,57142.0,57141.0,0.30322014]
[1725963925083,0.25462125,57142.0,57141.0,0.30322014]
[1725963926187,0.04145135,57142.0,57141.0,0.91571814]
[1725963926392,0.04145135,57142.0,57141.0,1.51571814]
[1725963927693,0.1395296,57147.0,57146.0,0.17498]
[1725963927894,0.19201744,57159.0,57146.0,0.78783]
[1725963927895,0.1395296,57148.0,57146.0,0.78783]
[1725963928186,0.15705884,57153.0,57152.0,0.087481]
[1725963928387,0.17459992,57157.0,57152.0,0.087481]
[1725963928388,0.15705884,57155.0,57152.0,0.1004]
[1725963928591,0.18727,57160.0,57158.0,0.087471]
[1725963928790,0.18317,57160.0,57159.0,0.0004]
[1725963928990,0.28317,57160.0,57158.0,0.087471]
[1725963929192,0.08747,57159.0,57158.0,0.13984096]
[1725963929384,0.08747,57159.0,57158.0,0.087471]
[1725963930186,0.1957,57160.0,57155.0,0.06982661]
[1725963930497,0.183169,57160.0,57159.0,0.0004]
[1725963931482,0.087469,57160.0,57159.0,0.08787]
[1725963931991,0.087469,57160.0,57159.0,0.14119533]
[1725963932794,0.087469,57160.0,57159.0,0.0014]
[1725963933697,0.087469,57160.0,57159.0,0.0024]
[1725963935289,0.087469,57160.0,57159.0,0.08987]
[1725963935601,0.0428401,57160.0,57159.0,0.18987]
[1725963935895,0.18203978,57160.0,57159.0,0.18987]
[1725963936085,0.19140641,57163.0,57162.0,0.087466]
[1725963936284,0.2879276,57163.0,57162.0,0.187466]
[1725963936583,0.19140641,57166.0,57165.0,0.087461]
[1725963936786,0.19140641,57166.0,57165.0,0.187861]
[1725963936787,0.28792692,57166.0,57165.0,0.187861]
[1725963936992,0.09652051,57166.0,57165.0,0.187861]
[1725963937597,0.05368784,57167.0,57166.0,0.08746]
[1725963937899,0.19140641,57168.0,57167.0,0.087458]
[1725963938196,0.23423909,57168.0,57167.0,0.087858]
[1725963938403,0.28792695,57168.0,57167.0,0.087858]
[1725963939294,0.28792695,57168.0,57167.0,0.088858]
[1725963939699,0.28792695,57168.0,57167.0,0.089858]
[1725963939994,0.4617869,57168.0,57167.0,0.089858]
[1725963940292,0.09652054,57168.0,57167.0,0.089858]
[1725963940497,0.26131595,57169.0,57168.0,0.087457]
[1725963940994,0.3041484,57169.0,57168.0,0.087857]
[1725963941301,0.35783596,57169.0,57168.0,0.087857]
[1725963941603,0.2529204,57169.0,57168.0,0.087857]
[1725963941899,0.2529204,57169.0,57168.0,0.089857]
[1725963941900,0.22754751,57169.0,57168.0,0.089857]
[1725963942193,0.27037996,57169.0,57168.0,0.189857]
[1725963942400,0.18397501,57169.0,57168.0,0.189857]
[1725963942893,0.18397501,57169.0,57168.0,0.2158102]
[1725963943399,0.087455,57169.0,57168.0,0.2158102]
[1725963943895,0.087455,57169.0,57168.0,0.089857]
[1725963944598,0.17491,57169.0,57168.0,0.0024]
[1725963944987,0.087469,57160.0,57159.0,0.0041]
[1725963945190,0.1,57160.0,57151.0,0.3218]
[1725963945388,0.087476,57156.0,57155.0,0.087475]
[1725963945598,0.187476,57156.0,57155.0,0.087475]
[1725963945907,0.08748,57153.0,57152.0,0.087881]
[1725963946398,0.08748,57153.0,57152.0,0.087481]
[1725963947292,0.08748,57153.0,57149.0,0.02527875]
[1725963947293,0.087476,57156.0,57155.0,0.087477]
[1725963947493,0.087476,57156.0,57155.0,0.087877]
[1725963948794,0.088476,57156.0,57155.0,0.087877]
[1725963949396,0.089476,57156.0,57155.0,0.087877]
[1725963949801,0.088476,57156.0,57155.0,0.087877]
[1725963950006,0.089476,57156.0,57155.0,0.087877]
[1725963951112,0.088476,57156.0,57155.0,0.087877]
[1725963951601,0.087476,57156.0,57155.0,0.087877]
[1725963952301,0.087476,57156.0,57155.0,0.14020233]
[1725963952497,0.087476,57156.0,57155.0,0.087877]
[1725963954306,0.087476,57156.0,57155.0,0.11406705]
[1725963955498,0.087476,57156.0,57155.0,0.18383415]
[1725963955700,0.1392,57159.0,57158.0,0.087472]
[1725963956002,0.1392,57159.0,57158.0,0.087872]
[1725963956799,0.22667,57159.0,57158.0,0.087872]
[1725963957498,0.26951019,57159.0,57158.0,0.087872]
[1725963957699,0.32320746,57159.0,57158.0,0.087872]
[1725963957900,0.32320746,57159.0,57158.0,0.089872]
[1725963958099,0.23573746,57159.0,57158.0,0.089872]
[1725963958302,0.09653746,57159.0,57158.0,0.089872]
[1725963958611,0.09653746,57159.0,57158.0,0.088872]
[1725963958801,0.09653746,57159.0,57158.0,0.177344]
[1725963958998,0.27097978,57159.0,57158.0,0.177344]
[1725963959199,0.27097978,57159.0,57158.0,1.302184]
[1725963959404,0.27097875,57159.0,57158.0,1.302184]
[1725963960404,0.33143922,57159.0,57158.0,1.389656]
[1725963960606,0.15699793,57160.0,57159.0,0.17494]
[1725963960804,0.09652297,57160.0,57159.0,0.86018]
[1725963961110,0.09652297,57160.0,57159.0,1.54765]
[1725963961111,0.04283376,57160.0,57159.0,1.54765]
[1725963961407,0.17444129,57162.0,57161.0,0.174934]
[1725963961611,0.17444129,57162.0,57161.0,0.335334]
[1725963961818,0.0041,57169.0,57162.0,0.174932]
[1725963961819,0.17444129,57163.0,57162.0,0.174932]
[1725963962002,0.21726928,57163.0,57162.0,0.380132]
[1725963962204,0.21726951,57163.0,57162.0,1.505332]
[1725963962407,0.19140641,57166.0,57165.0,0.087461]
[1725963962612,0.19140641,57166.0,57165.0,0.612661]
[1725963962810,0.19140641,57166.0,57165.0,1.212661]
[1725963963016,0.09651096,57166.0,57165.0,1.212661]
[1725963963311,0.15696014,57168.0,57166.0,0.08746]
[1725963963502,0.23650641,57176.0,57172.0,0.087451]
[1725963963503,0.17440201,57173.0,57172.0,0.087451]
[1725963963706,0.17440201,57173.0,57172.0,0.087851]
[1725963963707,0.19140641,57173.0,57172.0,0.087851]
[1725963963902,0.28791406,57173.0,57172.0,0.087451]
[1725963964308,0.09650765,57173.0,57172.0,0.087451]
[1725963964709,0.1918036,57173.0,57172.0,0.087451]
[1725963965002,0.24548429,57173.0,57172.0,0.087451]
[1725963965201,0.24548429,57173.0,57172.0,0.088451]
[1725963965202,0.09650599,57173.0,57172.0,0.088451]
[1725963965611,0.114643,57177.0,57175.0,0.087445]
[1725963965814,0.114643,57177.0,57176.0,0.0004]
[1725963967012,0.114643,57177.0,57176.0,0.087844]
[1725963968113,0.114643,57177.0,57176.0,0.088844]
[1725963968317,0.114643,57177.0,57176.0,0.089844]
[1725963969715,0.202087,57177.0,57176.0,0.0024]
[1725963970323,0.087457,57168.0,57167.0,0.0045]
[1725963970508,0.174914,57168.0,57167.0,0.0004]
[1725963971408,0.087464,57163.0,57162.0,0.087465]
[1725963973527,0.088464,57163.0,57162.0,0.087465]
[1725963974024,0.090464,57163.0,57162.0,0.087465]
[1725963974414,0.091464,57163.0,57162.0,0.087465]
[1725963980621,0.18798767,57163.0,57162.0,0.087465]
[1725963980826,0.04683407,57163.0,57162.0,0.087465]
[1725963983728,0.04683407,57163.0,57162.0,0.174931]
[1725963984123,0.004,57163.0,57162.0,0.087465]
[1725963989121,0.091464,57163.0,57162.0,0.087465]
[1725963991230,0.087472,57159.0,57158.0,0.087471]
[1725963991533,0.091464,57163.0,57151.0,0.0041]
[1725963991534,0.16,57162.0,57151.0,0.0041]